bitfinex/quotes_ETHUSD_20220101
["timestamp","ask_amount","ask_price","bid_price","bid_amount"]
[1641071197079,0.07444378,3769.0,3768.9,0.01436583]
[1641071197281,5.30138234,3769.0,3768.9,0.01436583]
[1641071197478,12.38378234,3769.0,3768.9,0.01436583]
[1641071197677,6.38298234,3769.0,3768.9,0.01436583]
[1641071197881,7.38298234,3769.0,3768.9,0.0035393]
[1641071198077,7.38378234,3769.0,3768.9,0.0035393]
[1641071198276,7.33164378,3769.0,3768.9,0.0035393]
[1641071198478,6.22444378,3769.0,3768.9,0.0035393]
[1641071199123,6.15852635,3769.0,3768.9,0.0035393]
[1641071202125,6.15852635,3769.0,3768.9,0.00895254]
[1641071204569,6.08318635,3769.0,3768.9,0.00895254]
[1641071204766,6.06672635,3769.0,3768.9,0.00895254]
[1641071205167,0.66354,3769.1,3768.9,0.00802254]
[1641071205369,0.66205,3769.1,3768.9,0.00802254]
[1641071205572,0.63353,3769.1,3768.9,0.00802254]
[1641071206172,1.76710384,3769.0,3768.9,0.00802254]
[1641071208732,1.63353,3769.1,3768.9,0.00802254]
[1641071209131,3.40063384,3769.1,3768.9,0.00802254]
[1641071210388,5.47931908,3769.1,3768.9,0.00802254]
[1641071210590,4.47931908,3769.1,3768.9,0.00802254]
[1641071213593,4.54523651,3769.1,3768.9,0.00802254]
[1641071218770,1.76710384,3769.0,3768.9,0.00802254]
[1641071219574,2.77813267,3769.1,3768.9,0.00802254]
[1641071222627,1.77817086,3769.0,3768.9,0.00802254]
[1641071224535,2.71221524,3769.1,3768.9,0.00802254]
[1641071225573,4.4903861,3769.1,3768.9,0.00802254]
[1641071227677,1.77817086,3769.0,3768.9,0.01211671]
[1641071228882,2.71221524,3769.1,3768.9,0.01211671]
[1641071229719,1.77530467,3769.0,3768.9,0.01211671]
[1641071230318,2.71221524,3769.1,3768.9,0.01211671]
[1641071231819,2.71221524,3769.1,3769.0,0.01048848]
[1641071232219,3.71221524,3769.1,3769.0,0.01048848]
[1641071232619,4.68981524,3769.1,3769.0,0.01048848]
[1641071233274,8.2278136,3769.1,3769.0,0.01048848]
[1641071233473,8.2278136,3769.1,3769.0,0.0021875]
[1641071235375,4.68981524,3769.1,3769.0,0.0021875]
[1641071236174,8.2278136,3769.1,3769.0,0.0021875]
[1641071236617,4.68981524,3769.1,3769.0,0.0021875]
[1641071237219,3.68981524,3769.1,3768.9,0.01211671]
[1641071237718,1.61113,3769.1,3768.9,0.01211671]
[1641071238320,0.4942,3769.0,3768.9,0.01211671]
[1641071238521,0.8054,3769.0,3768.9,0.01211671]
[1641071238718,10.85211743,3769.0,3768.9,0.01211671]
[1641071238921,7.85371743,3769.0,3768.9,0.01211671]
[1641071239128,24.46851743,3769.0,3767.7,1.35454335]
[1641071239331,0.66377,3768.4,3767.9,1.32261643]
[1641071239526,0.6637904,3768.2,3767.9,1.32261643]
[1641071239726,0.9776,3768.0,3767.9,1.32261643]
[1641071240130,0.9776,3768.0,3767.9,1.32886909]
[1641071240371,0.9776,3768.0,3767.9,3.46612247]
[1641071241072,0.9776,3768.0,3767.9,1.32886909]
[1641071241270,0.9776,3768.0,3767.9,0.00625266]
[1641071241681,0.9776,3768.0,3767.9,4.43725338]
[1641071242077,0.9776,3768.0,3767.9,4.44350604]
[1641071242675,0.9776,3768.0,3767.9,5.84222411]
[1641071242880,3.80671793,3768.0,3767.9,2.30625266]
[1641071243083,3.91151793,3768.0,3767.9,2.30625266]
[1641071243276,3.90671793,3768.0,3767.9,2.30625266]
[1641071243475,3.80671793,3768.0,3767.9,2.30625266]
[1641071243676,3.90671793,3768.0,3767.9,2.30625266]
[1641071244139,3.80671793,3768.0,3767.9,2.30625266]
[1641071245338,3.80671793,3768.0,3767.9,5.65625266]
[1641071246338,3.80671793,3768.0,3767.9,0.00625266]
[1641071246538,8.61962374,3768.0,3767.9,0.00625266]
[1641071246738,3.90671793,3768.0,3767.7,0.00738951]
[1641071246938,8.59731897,3768.0,3767.7,0.00738951]
[1641071247142,3.80671793,3768.0,3767.7,0.00738951]
[1641071247785,3.80671793,3768.0,3767.8,2.01881389]
[1641071248189,3.80671793,3768.0,3767.9,4.05625266]
[1641071249191,2.02435,3768.0,3767.9,6.07506655]
[1641071250698,3.80671793,3768.0,3767.9,4.05625266]
[1641071250902,3.90831793,3768.0,3767.9,0.00625266]
[1641071251100,9.67595424,3768.0,3767.9,0.00625266]
[1641071251299,4.90671793,3768.0,3767.9,2.01926463]
[1641071251533,9.56537748,3768.0,3767.9,2.01926463]
[1641071251727,4.80671793,3768.0,3767.9,2.02551729]
[1641071252233,4.90671793,3768.0,3767.9,3.20625266]
[1641071252627,3.12355,3768.0,3767.9,3.20625266]
[1641071252827,3.02435,3768.0,3767.9,3.20625266]
[1641071253227,3.02435,3768.0,3767.9,3.21233647]
[1641071253629,2.3606,3768.0,3767.9,3.21233647]
[1641071256271,2.4622,3768.0,3767.9,3.21233647]
[1641071256474,2.4606,3768.0,3767.9,0.01233647]
[1641071256672,2.4622,3768.0,3767.9,0.01233647]
[1641071256874,2.4606,3768.0,3767.9,0.01233647]
[1641071257175,2.4606,3768.0,3767.9,2.31233647]
[1641071257377,1.4598,3768.0,3767.9,2.31233647]
[1641071257574,1.3606,3768.0,3767.9,2.31233647]
[1641071258074,2.69659482,3768.0,3767.9,2.31233647]
[1641071259017,2.79579482,3768.0,3767.9,2.31233647]
[1641071259625,2.69659482,3768.0,3767.9,2.31233647]
[1641071259927,2.79739482,3768.0,3767.9,2.31233647]
[1641071260327,2.69659482,3768.0,3767.9,2.31233647]
[1641071260726,2.79579482,3768.0,3767.9,2.31233647]
[1641071260924,2.69659482,3768.0,3767.9,2.31233647]
[1641071261125,2.79579482,3768.0,3767.9,2.31233647]
[1641071261324,2.79659482,3768.0,3767.9,2.31233647]
[1641071261524,2.69659482,3768.0,3767.9,2.31233647]
[1641071261725,2.79579482,3768.0,3767.9,2.31233647]
[1641071261933,2.69659482,3768.0,3767.9,2.31233647]
[1641071262769,1.3606,3768.0,3767.9,2.31233647]
[1641071263671,6.29458527,3768.0,3767.9,0.01233647]
[1641071263873,7.40018527,3768.0,3767.9,0.01233647]
[1641071264076,7.39938527,3768.0,3767.9,0.01233647]
[1641071264277,7.40498527,3768.0,3767.9,0.01233647]
[1641071264477,7.40178527,3768.0,3767.9,0.01233647]
[1641071264677,7.40338527,3768.0,3767.9,0.01233647]
[1641071264881,7.40898527,3768.0,3767.9,0.01233647]
[1641071265083,7.36756398,3768.0,3767.9,0.01233647]
[1641071265281,7.3892238,3768.0,3767.9,0.01233647]
[1641071265479,7.365872,3768.0,3767.9,0.01233647]
[1641071265680,7.365072,3768.0,3767.9,0.01233647]
[1641071265878,7.366672,3768.0,3767.9,0.01233647]
[1641071266279,7.365872,3768.0,3767.9,0.01233647]
[1641071266520,7.366672,3768.0,3767.9,0.01233647]
[1641071267522,7.364272,3768.0,3767.9,0.01233647]
[1641071267921,7.365072,3768.0,3767.9,0.01233647]
[1641071268121,2.467,3768.0,3767.9,0.01233647]
[1641071268321,7.15107091,3768.0,3767.9,0.01233647]
[1641071268522,7.14947091,3768.0,3767.9,0.01233647]
[1641071268723,7.15507091,3768.0,3767.9,0.01233647]
[1641071268926,7.84747046,3768.0,3767.9,0.01233647]
[1641071269128,7.84587046,3768.0,3767.9,0.01233647]
[1641071269529,7.84507046,3768.0,3767.9,0.01233647]
[1641071269830,7.84747046,3768.0,3767.9,0.01233647]
[1641071270030,7.84587046,3768.0,3767.9,0.01233647]
[1641071270274,7.84507046,3768.0,3767.9,0.01233647]
[1641071270879,7.84587046,3768.0,3767.9,0.01233647]
[1641071271078,7.84507046,3768.0,3767.9,0.01233647]
[1641071271278,7.84827046,3768.0,3767.9,0.01233647]
[1641071271482,7.84667046,3768.0,3767.9,0.01233647]
[1641071271981,7.89175603,3768.0,3767.9,0.01233647]
[1641071272179,7.89335603,3768.0,3767.9,0.01233647]
[1641071272379,7.89255603,3768.0,3767.9,0.01233647]
[1641071272980,7.89335603,3768.0,3767.9,0.01233647]
[1641071273180,7.89415603,3768.0,3767.9,0.01233647]
[1641071273380,7.89255603,3768.0,3767.9,0.01233647]
[1641071273582,3.16499955,3768.0,3767.9,0.01233647]
[1641071273780,7.88207137,3768.0,3767.9,0.01233647]
[1641071274022,7.88767137,3768.0,3767.9,0.01233647]
[1641071274223,9.96718524,3768.0,3767.9,0.01233647]
[1641071274427,9.96478524,3768.0,3767.9,0.01233647]
[1641071274623,9.96318524,3768.0,3767.9,0.01233647]
[1641071275222,9.91318524,3768.0,3767.9,0.01233647]
[1641071275623,9.91478524,3768.0,3767.9,0.01233647]
[1641071275823,9.91238524,3768.0,3767.9,0.01233647]
[1641071276026,9.91558524,3768.0,3767.9,0.01233647]
[1641071276224,9.91318524,3768.0,3767.9,0.01233647]
[1641071276523,9.91238524,3768.0,3767.9,0.01233647]
[1641071276724,9.91318524,3768.0,3767.9,0.01233647]
[1641071277128,10.01672234,3768.0,3767.9,0.01233647]
[1641071277327,16.84438511,3768.0,3767.9,0.01233647]
[1641071277526,81.19013765,3768.0,3767.9,0.01233647]
[1641071277768,1.3280214,3767.2,3766.3,7.4214]
[1641071277975,1.59123,3766.8,3766.4,4.07893402]
[1641071278173,0.383,3766.7,3766.5,0.00795793]
[1641071278376,0.4822,3766.7,3766.5,0.00795793]
[1641071278574,0.9272,3766.6,3766.5,0.00795793]
[1641071278775,1.3102,3766.6,3766.5,0.00795793]
[1641071278972,1.3102,3766.6,3766.3,0.00909478]
[1641071279173,1.3102,3766.6,3765.9,1.35454335]
[1641071279174,1.3102,3766.6,3766.1,1.2388059]
[1641071279375,1.97425,3766.6,3766.1,1.2388059]
[1641071279573,1.97425,3766.6,3766.2,0.0096632]
[1641071280175,1.97425,3766.6,3766.2,1.66864089]
[1641071280576,1.97425,3766.6,3766.3,0.00909478]
[1641071280973,1.97425,3766.6,3766.3,1.66807247]
[1641071281371,1.97425,3766.6,3766.4,0.00852635]
[1641071282221,1.97425,3766.6,3766.3,0.00909478]
[1641071282821,1.97425,3766.6,3766.2,0.0096632]
[1641071283421,1.97425,3766.6,3766.3,1.74365999]
[1641071283822,1.97425,3766.6,3766.4,0.00852635]
[1641071284524,1.97425,3766.6,3766.4,0.00363325]
[1641071289326,2.97425,3766.6,3766.4,0.00363325]
[1641071289926,2.97425,3766.6,3766.4,0.00671019]
[1641071290226,1.97425,3766.6,3766.4,0.00671019]
[1641071290426,4.76504572,3766.5,3766.4,0.00671019]
[1641071290627,1.4102,3766.5,3766.4,0.00671019]
[1641071290826,1.411,3766.5,3766.4,0.01523654]
[1641071291229,1.4102,3766.5,3766.4,0.01523654]
[1641071291429,1.4102,3766.5,3766.4,0.00505684]
[1641071291627,1.3102,3766.5,3766.4,0.00505684]
[1641071291828,1.3102,3766.5,3765.7,0.00903581]
[1641071292029,0.66408,3766.1,3765.7,0.00903581]
[1641071292628,0.383,3766.0,3765.7,0.00903581]
[1641071292869,0.383,3766.0,3765.8,1.6621066]
[1641071293270,1.71128,3766.0,3765.9,3.40789896]
[1641071293468,2.63848,3766.0,3765.9,3.40789896]
[1641071295469,2.63848,3766.0,3765.9,3.41153273]
[1641071296824,2.63848,3766.0,3765.9,0.01153273]
[1641071297225,8.56516918,3766.0,3765.9,0.01153273]
[1641071297426,8.88036918,3766.0,3765.9,0.01153273]
[1641071297628,42.48796918,3766.0,3765.9,0.01153273]
[1641071297827,37.49276918,3766.0,3765.9,0.01153273]
[1641071298028,37.49276918,3766.0,3764.8,0.0576323]
[1641071298029,2.3,3765.9,3764.8,0.0576323]
[1641071298230,0.66431,3765.3,3764.8,0.0576323]
[1641071298431,0.383,3765.2,3765.0,0.00511581]
[1641071298631,0.383,3765.1,3765.0,0.00511581]
[1641071298829,0.483,3765.1,3764.9,0.00568423]
[1641071299037,0.483,3765.1,3765.0,1.6085746]
[1641071299038,0.491,3765.1,3765.0,1.6085746]
[1641071299230,5.37810342,3765.1,3765.0,1.6085746]
[1641071299430,8.12061413,3765.1,3765.0,1.6085746]
[1641071299630,8.12061413,3765.1,3764.9,0.00568423]
[1641071299833,4.82246273,3765.0,3764.9,0.00568423]
[1641071300030,0.66439,3764.7,3764.4,0.00852635]
[1641071300269,0.383,3764.6,3764.4,0.00852635]
[1641071300470,0.383,3764.5,3764.4,0.00852635]
[1641071300672,0.383,3764.5,3764.4,4.80852635]
[1641071301069,0.383,3764.5,3764.4,6.47111183]
[1641071301774,1.04279,3764.5,3764.4,6.47111183]
[1641071303573,1.14599,3764.5,3764.4,6.47111183]
[1641071303773,2.07719,3764.5,3764.4,6.47111183]
[1641071304017,3.07959,3764.5,3764.4,6.47111183]
[1641071304220,3.08039,3764.5,3764.4,6.47111183]
[1641071304423,3.08279,3764.5,3764.4,6.47111183]
[1641071304620,3.07959,3764.5,3764.4,6.47111183]
[1641071304820,3.07799,3764.5,3764.4,6.47111183]
[1641071305020,3.07799,3764.5,3764.4,1.67111183]
[1641071305021,3.07879,3764.5,3764.4,1.67111183]
[1641071305220,3.07719,3764.5,3764.4,1.67111183]
[1641071305520,3.07639,3764.5,3764.4,1.67111183]
[1641071305721,10.04825693,3764.5,3764.4,1.67111183]
[1641071305922,10.05465693,3764.5,3764.4,1.67111183]
[1641071306322,11.84468533,3764.5,3764.4,1.67111183]
[1641071306521,11.84628533,3764.5,3764.4,1.67111183]
[1641071306721,11.84708533,3764.5,3764.4,1.67111183]
[1641071306925,11.84468533,3764.5,3764.4,1.67111183]
[1641071307121,19.44628533,3764.5,3764.4,1.67111183]
[1641071307321,19.44868533,3764.5,3764.4,1.67111183]
[1641071307522,17.66345693,3764.5,3764.4,1.67111183]
[1641071307778,17.66665693,3764.5,3764.4,1.67111183]
[1641071307978,17.66585693,3764.5,3764.4,1.67111183]
[1641071308178,17.66025693,3764.5,3764.4,1.67111183]
[1641071308377,19.45500931,3764.5,3764.4,1.67111183]
[1641071308581,19.45340931,3764.5,3764.4,1.67111183]
[1641071308783,19.45020931,3764.5,3764.4,1.67111183]
[1641071308985,19.45500931,3764.5,3764.4,1.67111183]
[1641071309182,19.45340931,3764.5,3764.4,1.67111183]
[1641071309783,19.45420931,3764.5,3764.4,1.67111183]
[1641071309985,19.45340931,3764.5,3764.4,1.67111183]
[1641071310186,19.45180931,3764.5,3764.4,1.67111183]
[1641071310585,19.45740931,3764.5,3764.4,1.66186302]
[1641071310783,19.45740931,3764.5,3763.7,1.03449948]
[1641071310784,15.55311935,3764.5,3763.7,1.03449948]
[1641071310986,0.6645502,3764.3,3763.7,1.03449948]
[1641071311186,1.04756,3764.2,3764.1,0.00170527]
[1641071311390,1.15876,3764.2,3764.1,0.00170527]
[1641071311645,2.45796,3764.2,3764.1,0.00170527]
[1641071311849,32.45796,3764.2,3764.1,0.00170527]
[1641071312045,32.82467743,3764.2,3764.1,0.00170527]
[1641071312251,33.76227743,3764.2,3764.1,0.00170527]
[1641071312445,32.39556,3764.2,3764.1,0.00170527]
[1641071312647,33.39636,3764.2,3764.1,0.00170527]
[1641071312846,33.69956,3764.2,3764.1,0.00170527]
[1641071313046,33.69396,3764.2,3764.1,0.00170527]
[1641071313246,33.69236,3764.2,3764.1,0.00170527]
[1641071313449,33.69316,3764.2,3764.1,0.00170527]
[1641071313852,33.69236,3764.2,3764.1,0.00170527]
[1641071314448,33.68916,3764.2,3764.1,0.00170527]
[1641071314648,33.69716,3764.2,3764.1,0.00170527]
[1641071314851,33.69956,3764.2,3764.1,0.00170527]
[1641071315047,33.69716,3764.2,3764.1,0.00170527]
[1641071315286,15.69396,3764.2,3764.0,11.21596598]
[1641071315487,5.83806937,3764.1,3764.0,11.21596598]
[1641071315696,6.33626937,3764.1,3764.0,11.21596598]
[1641071316093,6.33386937,3764.1,3764.0,11.21596598]
[1641071316801,6.33466937,3764.1,3764.0,11.21596598]
[1641071316994,6.23684492,3764.1,3764.0,11.21596598]
[1641071317193,6.23604492,3764.1,3764.0,11.21596598]
[1641071317397,1.4926,3764.1,3764.0,11.21596598]
[1641071317594,6.1867903,3764.1,3764.0,11.21596598]
[1641071317796,7.1171903,3764.1,3764.0,11.21596598]
[1641071317999,2.419,3764.1,3764.0,11.21596598]
[1641071318198,2.4206,3764.1,3764.0,11.21596598]
[1641071318399,2.4182,3764.1,3764.0,11.21596598]
[1641071318706,2.4206,3764.1,3764.0,11.21596598]
[1641071318900,2.4142,3764.1,3764.0,11.21596598]
[1641071319163,0.383,3764.1,3764.0,11.21596598]
[1641071320162,0.66456,3764.2,3764.0,11.21596598]
[1641071320361,0.66435,3764.4,3764.0,11.21596598]
[1641071321561,0.66435,3764.4,3764.1,4.14217261]
[1641071321762,0.66435,3764.4,3764.1,4.10439891]
[1641071322164,0.66435,3764.4,3764.0,11.21596598]
[1641071322365,0.66435,3764.4,3764.0,11.88031598]
[1641071322777,0.66435,3764.4,3764.0,15.99509246]
[1641071322978,0.66435,3764.4,3764.0,11.88031598]
[1641071323779,0.66435,3764.4,3764.0,11.21596598]
[1641071323980,1.31905548,3764.2,3764.0,11.21596598]
[1641071324385,1.98344548,3764.2,3764.0,11.21596598]
[1641071324785,1.31905548,3764.1,3764.0,11.21596598]
[1641071325886,1.98344548,3764.2,3764.0,11.21596598]
[1641071327550,1.98344548,3764.2,3764.1,9.88264687]
[1641071327756,1.31905548,3764.2,3764.1,9.88277887]
[1641071328449,1.31905548,3764.2,3764.1,9.82106089]
[1641071328650,1.31905548,3764.2,3764.1,5.7]
[1641071329051,1.31905548,3764.3,3764.1,9.81329518]
[1641071329254,1.31905548,3764.3,3764.2,11.13940493]
[1641071329653,1.32019232,3764.3,3764.2,11.13940493]
[1641071330391,1.32019232,3764.3,3764.2,13.88940493]
[1641071330590,1.79475238,3764.6,3764.4,0.66417]
[1641071330787,0.05763561,3764.8,3764.5,11.84401366]
[1641071331187,1.79475238,3765.1,3764.5,7.6]
[1641071331389,1.79475238,3765.1,3765.0,7.27519701]
[1641071331789,1.32844,3765.6,3765.0,7.27519701]
[1641071331790,4.89317585,3765.6,3765.0,7.27519701]
[1641071332191,0.00682109,3765.5,3765.0,7.27519701]
[1641071332592,0.00625266,3765.4,3765.0,7.27414971]
[1641071332790,0.66421,3765.3,3765.0,1.22414971]
[1641071332993,0.66989424,3765.3,3765.0,1.22414971]
[1641071333190,0.00511582,3765.2,3765.0,1.22414971]
[1641071333594,0.00454739,3765.1,3765.0,1.22414971]
[1641071334430,0.00454739,3765.1,3765.0,5.92414971]
[1641071339205,0.00454739,3765.1,3765.0,7.45634212]
[1641071341210,0.00454739,3765.1,3765.0,11.5943576]
[1641071341832,0.00454739,3765.1,3765.0,11.6555333]
[1641071346798,0.00454739,3765.1,3765.0,7.45634212]
[1641071346998,0.00454739,3765.1,3765.0,11.6058256]
[1641071349031,0.00454739,3765.1,3765.0,7.45634212]
[1641071349434,0.00454739,3765.1,3765.0,11.61659095]
[1641071350935,0.00454739,3765.1,3764.9,0.6641993]
[1641071351336,0.00397897,3765.0,3764.9,0.6641993]
[1641071352335,0.00397897,3765.0,3764.9,7.97299761]
[1641071355299,0.00397897,3765.0,3764.9,1.40879831]
[1641071356095,0.00397897,3765.0,3764.9,5.10879831]
[1641071360601,0.00397897,3765.0,3764.9,6.46207966]
[1641071361098,0.00397897,3765.0,3764.9,5.10879831]
[1641071362703,1.33523908,3765.4,3765.0,9.6]
[1641071363108,0.00170527,3765.3,3765.1,0.66399]
[1641071363307,0.00170527,3765.3,3765.1,0.96399]
[1641071363506,0.00113685,3765.2,3765.1,0.96399]
[1641071363807,0.00113685,3765.2,3765.1,10.56404]
[1641071364249,0.00113685,3765.2,3765.1,11.228021]
[1641071364650,1.33523908,3765.7,3765.2,9.05]
[1641071364851,4.77501794,3766.3,3765.2,9.05]
[1641071364852,4.77501794,3766.3,3765.3,0.664]
[1641071365052,2.31704,3766.9,3765.9,1.0408987]
[1641071365253,0.66401,3766.6,3765.9,1.0408987]
[1641071365452,0.00625265,3766.3,3765.9,1.0408987]
[1641071365852,0.00568423,3766.2,3765.9,1.0408987]
[1641071366154,0.00511581,3766.1,3765.9,1.0408987]
[1641071366352,0.00511581,3766.1,3765.9,4.3609239]
[1641071366556,0.00454738,3766.0,3765.9,4.3609239]
[1641071366954,0.00454738,3766.0,3765.9,8.0609239]
[1641071367157,0.00454738,3766.0,3765.9,8.06610716]
[1641071371303,0.00454738,3766.0,3765.9,0.00518326]
[1641071372828,0.69798526,3766.0,3765.9,0.00518326]
[1641071377188,2.03322434,3766.0,3765.9,4.29203683]
[1641071381058,2.03322434,3766.0,3765.9,4.39203683]
[1641071387846,2.03322434,3766.0,3765.9,6.99203683]
[1641071388049,0.69798526,3766.0,3765.9,6.99203683]
[1641071388248,0.69798526,3766.0,3765.9,4.39203683]
[1641071388649,2.03322434,3766.0,3765.9,4.39203683]
[1641071389855,2.03322434,3766.0,3765.9,1.54203683]
[1641071390702,2.96108668,3766.0,3765.9,1.54203683]
[1641071390903,2.96028668,3766.0,3765.9,1.54203683]
[1641071391102,2.96828668,3766.0,3765.9,1.54203683]
[1641071391301,2.96428668,3766.0,3765.9,1.54203683]
[1641071391501,2.96188668,3766.0,3765.9,1.54203683]
[1641071391702,1.18578526,3766.0,3765.9,0.10518326]
[1641071391903,1.08098526,3766.0,3765.9,0.10518326]
[1641071394047,2.87332462,3766.0,3765.9,0.10518326]
[1641071396953,1.07643788,3766.0,3765.9,0.10518326]
[1641071398692,1.18363788,3766.0,3765.9,0.10518326]
[1641071398892,2.10683788,3766.0,3765.9,0.10518326]
[1641071399098,2.10603788,3766.0,3765.9,0.10518326]
[1641071399596,2.10443788,3766.0,3765.9,0.10518326]
[1641071399797,2.10763788,3766.0,3765.9,0.10518326]
[1641071399997,2.10363788,3766.0,3765.9,0.10518326]
[1641071400203,2.10283788,3766.0,3765.9,0.10518326]
[1641071400398,2.10363788,3766.0,3765.9,0.10518326]
[1641071400601,5.30283788,3766.0,3765.9,0.10518326]
[1641071400800,5.31163788,3766.0,3765.9,0.10518326]
[1641071400998,5.31083788,3766.0,3765.9,0.10518326]
[1641071401199,2.10923788,3766.0,3765.9,0.10518326]
[1641071401398,2.10843788,3766.0,3765.9,0.10518326]
[1641071401641,4.65683788,3766.0,3765.9,0.10518326]
[1641071401841,4.66083788,3766.0,3765.9,0.10518326]
[1641071402242,4.65763788,3766.0,3765.9,0.10518326]
[1641071402442,2.10683788,3766.0,3765.9,0.10518326]
[1641071402646,2.10603788,3766.0,3765.9,0.10518326]
[1641071402846,2.10523788,3766.0,3765.9,0.10518326]
[1641071403043,2.10363788,3766.0,3765.9,0.10518326]
[1641071403243,2.10283788,3766.0,3765.9,0.10518326]
[1641071403442,2.00363788,3766.0,3765.9,0.10518326]
[1641071403642,2.10523788,3766.0,3765.9,0.10518326]
[1641071403842,2.10603788,3766.0,3765.9,0.10518326]
[1641071404043,2.10683788,3766.0,3765.9,0.10518326]
[1641071404246,2.10763788,3766.0,3765.9,0.10518326]
[1641071404450,2.10683788,3766.0,3765.9,0.10518326]
[1641071404748,3.10363788,3766.0,3765.9,0.10518326]
[1641071404950,8.86440728,3766.0,3765.9,0.10518326]
[1641071405152,8.5,3765.9,3764.6,3.55450898]
[1641071405399,57.05389071,3766.0,3764.6,3.55450898]
[1641071405400,0.66435,3765.2,3764.6,3.55450898]
[1641071405597,0.6643462,3765.6,3764.7,0.00284212]
[1641071405598,5.0834468,3765.1,3764.7,0.00284212]
[1641071405796,0.4958,3765.1,3764.7,0.00284212]
[1641071406000,0.108,3765.0,3764.2,0.00568424]
[1641071406201,0.383,3764.9,3764.2,0.00568424]
[1641071406401,0.383,3764.9,3764.2,0.67004424]
[1641071406603,0.1,3764.8,3764.3,0.66434]
[1641071406801,0.383,3764.7,3764.3,0.66945582]
[1641071407002,0.383,3764.7,3764.4,0.00454739]
[1641071407700,1.04736,3764.7,3764.5,1.43272671]
[1641071408099,1.04736,3764.7,3764.6,0.00341054]
[1641071408904,1.04736,3764.7,3764.6,1.43613725]
[1641071410644,1.14976,3764.7,3764.6,1.43613725]
[1641071410844,1.04736,3764.7,3764.6,1.43613725]
[1641071411644,1.04736,3764.7,3764.6,0.00341054]
[1641071412046,1.04736,3764.7,3764.4,0.66887739]
[1641071412448,1.04736,3764.7,3764.5,0.00397897]
[1641071412646,0.383,3764.7,3764.5,1.28526479]
[1641071413107,0.383,3764.7,3764.6,2.40341054]
[1641071413503,0.383,3764.7,3764.6,3.68469636]
[1641071414506,0.383,3764.7,3764.6,7.88469636]
[1641071417337,0.69369394,3765.0,3764.6,7.88469636]
[1641071417537,0.69369394,3765.0,3764.7,3.3205976]
[1641071417939,0.69369394,3765.0,3764.8,0.0022737]
[1641071418341,0.69369394,3765.0,3764.9,9.06047501]
[1641071418737,0.69369394,3765.0,3764.9,9.06218028]
[1641071419343,0.00170527,3765.5,3764.9,9.06218028]
[1641071419344,0.00170527,3765.5,3765.2,0.66406]
[1641071419543,0.00170527,3765.5,3765.3,5.23651091]
[1641071419740,1.33878524,3765.6,3765.4,13.86551979]
[1641071420041,0.05763395,3765.7,3765.5,4.32218869]
[1641071420298,0.05763395,3765.7,3765.5,4.98616869]
[1641071420492,0.00227369,3765.6,3765.5,0.66398]
[1641071420695,0.00227369,3765.6,3765.5,14.59803594]
[1641071420895,0.00227369,3765.6,3765.5,15.87932176]
[1641071421094,0.00227369,3765.6,3765.5,16.54330146]
[1641071422703,0.00227369,3765.6,3765.5,17.20726146]
[1641071426951,1.33878524,3766.3,3765.9,0.6639237]
[1641071427151,1.33878524,3766.3,3765.9,4.80984161]
[1641071427350,0.00341054,3766.2,3765.9,4.80984161]
[1641071427790,0.00284212,3766.1,3765.9,4.8251477]
[1641071427990,0.00284212,3766.1,3765.9,1.9918037]
[1641071428195,2.45172673,3766.5,3765.9,1.9918037]
[1641071428196,0.00227369,3766.0,3765.9,1.9918037]
[1641071428392,0.00227369,3766.0,3765.9,11.2696837]
[1641071428592,0.00227369,3766.0,3765.9,10.60576]
[1641071428795,0.00227369,3766.0,3765.9,7.95]
[1641071429398,0.00227369,3766.0,3765.9,12.07676895]
[1641071429799,0.00227369,3766.0,3765.9,12.74066895]
[1641071430499,0.00227369,3766.0,3765.9,14.77150459]
[1641071430698,0.00227369,3766.0,3765.9,15.07150459]
[1641071432550,0.00227369,3766.0,3765.9,15.07773143]
[1641071433149,0.05763212,3766.7,3766.3,0.66381]
[1641071433350,0.05763212,3766.7,3766.5,0.6638142]
[1641071433550,0.00341054,3766.6,3766.5,0.6638142]
[1641071433856,0.00341054,3766.6,3766.5,9.91233851]
[1641071434055,0.00341054,3766.6,3766.5,11.20147005]
[1641071437195,0.00341054,3766.6,3766.5,14.15147005]
[1641071437497,1.33878524,3767.2,3766.7,0.66369]
[1641071437698,3.84814298,3767.3,3767.0,0.6637]
[1641071437900,3.84814298,3767.3,3767.1,0.6636863]
[1641071438101,2.50935774,3767.3,3767.1,0.6636863]
[1641071438300,0.05763101,3767.3,3767.1,0.6636863]
[1641071438498,0.05763101,3767.3,3767.2,7.86463893]
[1641071438903,0.06160998,3767.3,3767.2,7.86463893]
[1641071439356,0.00397897,3767.3,3767.2,7.86463893]
[1641071439556,0.00397897,3767.3,3767.2,9.06158923]
[1641071441160,0.00397897,3767.3,3767.2,4.8969503]
[1641071441563,0.00397897,3767.3,3767.1,1.3273763]
[1641071441564,1.34276421,3767.3,3767.1,1.3273763]
[1641071441757,1.34276421,3767.3,3767.0,44.0]
[1641071441959,0.00341055,3767.2,3767.0,44.0]
[1641071442359,0.00284212,3767.1,3767.0,44.0]
[1641071443008,0.00284212,3767.1,3767.0,45.20000835]
[1641071444213,2.63027506,3767.8,3767.1,9.6]
[1641071444410,1.79692268,3767.3,3767.1,0.66385]
[1641071444609,1.79805953,3767.3,3767.1,0.66385]
[1641071444813,1.3485741,3767.3,3767.1,0.66385]
[1641071446115,1.34743725,3767.2,3767.1,0.66385]
[1641071446549,1.3485741,3767.3,3767.1,0.66385]
[1641071447854,0.00113685,3767.3,3767.1,0.66385]
[1641071448255,0.00113685,3767.3,3767.1,4.72162367]
[1641071448457,0.00113685,3767.3,3767.2,13.77172907]
[1641071454252,0.05719044,3768.1,3768.0,43.99886315]
[1641071454459,0.05719044,3768.1,3768.0,44.66250745]
[1641071455352,3.79916398,3768.2,3768.0,44.66250745]
[1641071455555,3.79916398,3768.2,3768.1,1.15321901]
[1641071455954,3.80427979,3768.2,3768.1,3.75321901]
[1641071457803,3.80427979,3768.2,3768.1,1.15321901]
[1641071459007,2.45684254,3768.2,3768.1,5.15321901]
[1641071460412,2.45684254,3768.2,3768.1,1.15321901]
[1641071461015,0.00511581,3768.2,3768.1,1.15321901]
[1641071461413,2.92416327,3768.6,3768.5,9.86341292]
[1641071461662,1.92416327,3768.6,3768.5,9.86341292]
[1641071462262,1.78554132,3768.6,3768.5,9.86341292]
[1641071462462,0.05718893,3768.9,3768.5,9.86341292]
[1641071462660,0.05718893,3768.9,3768.6,0.66358]
[1641071462861,0.00341054,3768.8,3768.7,1.19588178]
[1641071463864,0.00341054,3768.8,3768.7,4.29588178]
[1641071464869,0.00341054,3768.8,3768.7,8.39588178]
[1641071465902,0.00341054,3768.8,3768.7,14.80490236]
[1641071466307,6.53197093,3769.9,3769.6,1.17262529]
[1641071466507,2.0842884,3769.7,3769.6,3.82578529]
[1641071466905,2.0842884,3769.7,3769.6,7.82578529]